bitfinex-derivatives/quotes_ETHF0:USTF0_20260120
["timestamp","ask_amount","ask_price","bid_price","bid_amount"]
[1768919951204,0.16265,3076.3,3073.6,1.58342299]
[1768919951507,0.16267,3075.9,3073.6,1.74621299]
[1768919951817,0.56885514,3075.8,3073.6,4.84303027]
[1768919951997,0.40617514,3075.7,3073.7,1.58342299]
[1768919952302,0.00266422,3075.9,3073.7,1.58342299]
[1768919952505,0.00266422,3075.9,3074.0,1.58342299]
[1768919953311,0.00266422,3075.9,3074.2,1.58342299]
[1768919953494,0.16264,3076.5,3074.2,1.58342299]
[1768919953804,0.16264,3076.5,3074.3,10.98433238]
[1768919953994,0.40618023,3076.4,3074.3,6.75642299]
[1768919954194,0.16264,3076.5,3074.3,6.75642299]
[1768919954707,0.40582366,3076.4,3074.3,6.75642299]
[1768919954908,0.1662013,3076.5,3074.3,6.75642299]
[1768919955100,0.40582145,3076.4,3074.3,6.75642299]
[1768919955401,0.40582145,3076.3,3074.4,1.62577132]
[1768919955601,0.1662013,3076.5,3074.4,1.62577132]
[1768919955898,0.0035613,3076.5,3074.7,1.62577132]
[1768919956303,0.0035613,3076.5,3074.8,0.16273]
[1768919956603,0.0035613,3076.5,3074.9,1.62577132]
[1768919956995,0.16265,3076.4,3074.3,1.62577132]
[1768919957194,0.56806285,3076.3,3074.3,1.62577132]
[1768919957501,0.16265,3076.3,3074.3,1.62577132]
[1768919957703,0.0035613,3076.5,3074.5,1.62577132]
[1768919958399,0.0035613,3076.5,3074.9,1.62577132]
[1768919958609,0.0035613,3076.5,3075.0,1.62577132]
[1768919958805,0.69489148,3077.2,3075.1,1.62577132]
[1768919959000,0.69489148,3077.2,3075.2,1.62577132]
[1768919959196,0.16264,3076.5,3074.5,4.88177132]
[1768919959398,1.58293604,3076.9,3074.6,1.62577132]
[1768919959812,0.00369599,3076.9,3074.6,1.62577132]
[1768919960110,0.16265,3076.4,3074.6,4.88077132]
[1768919960505,0.16266,3076.2,3074.0,1.62577132]
[1768919960807,0.16266,3076.1,3074.1,3.255]
[1768919961116,1.58293604,3076.4,3074.1,3.255]
[1768919961406,0.16265,3076.4,3074.2,1.62577132]
[1768919961602,0.00369599,3076.9,3074.3,1.62577132]
[1768919961995,0.00369599,3076.9,3074.5,1.62577132]
[1768919962199,0.00369599,3076.9,3075.1,1.62577132]
[1768919962497,0.00369599,3076.9,3075.3,1.62577132]
[1768919962700,0.00369599,3076.9,3075.5,1.62577132]
[1768919963106,0.00369599,3076.9,3075.0,5.169]
[1768919963410,0.00369599,3076.9,3075.1,1.62577132]
[1768919964212,0.00369599,3076.9,3075.3,1.62577132]
[1768919964506,0.69489148,3077.2,3075.4,4.25297755]
[1768919964712,0.69489148,3077.2,3075.6,1.62577132]
[1768919965515,0.69847956,3077.2,3075.6,1.62577132]
[1768919965702,0.69847956,3077.2,3075.7,6.79477132]
[1768919966011,0.69847956,3077.2,3075.8,1.62577132]
[1768919966209,1.74547604,3078.3,3075.8,1.62873229]
[1768919966510,0.16256,3078.1,3075.8,1.62873229]
[1768919966706,0.16256,3078.1,3076.0,1.62577132]
[1768919966909,1.58293604,3079.0,3076.6,1.62577132]
[1768919967110,0.16254,3078.4,3076.7,1.914]
[1768919967406,0.16560929,3078.4,3076.3,5.168]
[1768919967611,1.58600533,3078.4,3076.1,1.62577132]
[1768919968011,1.58600533,3078.4,3076.3,1.62577132]
[1768919968208,0.00306929,3078.4,3076.3,1.62577132]
[1768919968411,0.00306929,3078.4,3076.0,5.168]
[1768919968412,0.16256,3078.1,3076.0,5.168]
[1768919968599,0.00306929,3078.4,3076.1,1.62577132]
[1768919968806,0.00306929,3078.4,3076.7,1.62577132]
[1768919969013,0.00306929,3078.4,3077.2,1.62577132]
[1768919969216,0.16246,3080.0,3077.5,0.76073298]
[1768919969516,0.92319298,3080.0,3077.6,1.62577132]
[1768919969811,0.76073298,3080.4,3078.0,1.62577132]
[1768919970014,1.58293604,3081.0,3078.7,0.76073298]
[1768919970317,0.76073298,3080.0,3078.7,0.00279561]
[1768919970514,1.58293604,3079.5,3077.1,2.3865043]
[1768919970716,1.58293604,3079.1,3077.1,4.87977132]
[1768919971011,1.58293604,3079.1,3077.1,3.254]
[1768919971206,1.74544604,3079.0,3077.1,3.254]
[1768919971511,1.74544604,3079.0,3077.1,3.25674232]
[1768919971915,1.74544604,3079.0,3077.1,5.16874232]
[1768919972117,1.58293604,3079.4,3077.1,0.00274232]
[1768919972415,2.63953301,3078.9,3077.1,0.00274232]
[1768919972620,0.16252,3078.8,3077.1,0.00274232]
[1768919972808,1.58293604,3079.3,3077.1,0.00274232]
[1768919973009,0.16248,3079.6,3077.1,2.68511061]
[1768919973210,1.74914389,3079.6,3077.2,4.31709816]
[1768919973409,1.58293604,3079.1,3077.1,0.00274232]
[1768919973611,1.74543604,3079.1,3077.1,0.00274232]
[1768919973821,1.58293604,3079.1,3077.1,1.62851364]
[1768919974015,1.74543604,3079.1,3077.1,0.00274232]
[1768919974221,0.00372785,3079.6,3077.1,1.62851364]
[1768919974409,0.00372785,3079.6,3078.1,1.62577132]
[1768919974610,0.00372785,3079.6,3077.5,1.21917697]
[1768919974611,0.00372785,3079.6,3077.7,3.253]
[1768919974821,0.00372785,3079.6,3077.7,4.87877132]
[1768919975018,0.00372785,3079.6,3077.7,1.62577132]
[1768919975222,0.00372785,3079.6,3077.9,1.62577132]
[1768919975717,0.00372785,3079.6,3078.1,1.62577132]
[1768919976319,0.00372785,3079.6,3078.1,4.87877132]
[1768919976515,0.00372785,3079.6,3078.2,1.62577132]
[1768919976706,1.58293604,3080.9,3078.2,1.62577132]
[1768919976907,1.58293604,3080.9,3078.4,1.62577132]
[1768919977115,1.58293604,3080.9,3078.5,1.05659697]
[1768919977311,1.58293604,3081.7,3079.1,1.62577132]
[1768919977820,1.58293604,3081.7,3079.6,1.62577132]
[1768919977821,0.00349614,3081.7,3079.6,1.62577132]
[1768919978014,0.00349614,3081.7,3079.7,6.78977132]
[1768919978220,0.00349614,3081.7,3079.8,1.62577132]
[1768919978416,0.00349614,3081.7,3079.9,6.78977132]
[1768919978616,0.00349614,3081.7,3080.1,1.62577132]
[1768919978816,0.00349614,3081.7,3080.0,4.1639681]
[1768919979123,0.00349614,3081.7,3080.0,3.252]
[1768919979321,0.00349614,3081.7,3079.8,1.62577132]
[1768919979521,0.00349614,3081.7,3079.9,5.164]
[1768919979824,0.00349614,3081.7,3079.8,1.62577132]
[1768919980120,1.58293604,3081.4,3079.2,1.62577132]
[1768919980314,0.00349614,3081.7,3079.6,1.62925445]
[1768919980824,0.16239,3081.3,3079.6,0.00348313]
[1768919981015,1.58643218,3081.7,3079.6,1.62925445]
[1768919981219,0.00349614,3081.7,3079.9,0.16246]
[1768919981416,0.00349614,3081.7,3079.7,3.251]
[1768919981712,0.00349614,3081.7,3079.7,4.87677132]
[1768919981913,0.00349614,3081.7,3079.8,1.62577132]
[1768919982427,0.16238,3081.5,3079.6,3.25448313]
[1768919982618,0.16238,3081.4,3079.6,3.25448313]
[1768919983116,0.00349614,3081.7,3079.7,1.70194834]
[1768919983518,0.16586614,3081.7,3079.7,1.70194834]
[1768919983818,1.87703898,3085.1,3081.8,1.70194834]
[1768919984023,1.71484898,3084.7,3082.0,1.70194834]
[1768919984219,1.71484898,3084.5,3082.0,1.70194834]
[1768919984619,0.00252775,3084.5,3082.2,1.70194834]
[1768919985524,0.00252775,3084.5,3082.3,3.25]
[1768919985727,0.00252775,3084.5,3082.4,1.68725928]
[1768919986028,0.00252775,3084.5,3082.6,1.68725928]
[1768919986224,0.01784946,3085.6,3082.8,1.68725928]
[1768919986417,1.68737396,3085.6,3082.8,1.68725928]
[1768919986623,1.68737396,3085.6,3083.0,1.68725928]
[1768919987230,1.69141308,3085.6,3083.1,4.15573965]
[1768919987415,1.69141308,3085.6,3083.1,1.68725928]
[1768919987614,0.02188858,3085.6,3083.2,1.84953928]
[1768919987922,1.6695245,3087.2,3083.8,1.84950928]
[1768919988227,1.6695245,3087.2,3084.0,1.68725928]
[1768919988527,0.16201,3088.5,3084.9,1.68725928]
[1768919988721,1.6695245,3088.6,3085.4,1.68725928]
[1768919988920,1.67274092,3088.6,3085.6,1.68725928]
[1768919989117,0.16194,3089.8,3086.4,1.68725928]
[1768919989422,1.6695245,3089.9,3087.0,1.68725928]
[1768919989625,1.6695245,3089.9,3086.5,7.83201089]
[1768919989626,1.6695245,3089.6,3086.5,7.83201089]
[1768919989930,1.6695245,3089.4,3086.3,4.93525928]
[1768919990123,1.6695245,3088.5,3085.6,1.68725928]
[1768919990426,1.6695245,3088.1,3085.4,0.00390511]
[1768919990622,1.8315945,3087.4,3085.4,0.00390511]
[1768919991142,1.6695245,3087.2,3085.4,0.00390511]
[1768919991322,0.16208,3087.1,3085.4,0.00390511]
[1768919991628,1.6695245,3087.0,3085.4,0.00390511]
[1768919992627,0.00311568,3087.2,3083.4,4.93425928]
[1768919992628,1.8316445,3086.3,3083.4,4.93425928]
[1768919992827,0.16215,3085.9,3083.4,4.93425928]
[1768919993020,0.16216,3085.7,3083.4,4.93425928]
[1768919993327,1.6695245,3085.4,3082.7,1.68725928]
[1768919993528,1.6695245,3085.4,3082.7,1.69059949]
[1768919993735,1.8317045,3085.3,3082.9,1.68725928]
[1768919994235,1.6695245,3084.8,3082.7,0.00334021]
[1768919994416,1.67263653,3084.8,3082.7,0.00334021]
[1768919995321,1.6695245,3084.6,3082.7,0.00334021]
[1768919995826,1.8317345,3084.6,3082.7,0.00334021]
[1768919996527,0.00311203,3084.8,3082.7,1.69059949]
[1768919996832,0.00311203,3084.8,3082.7,0.00334021]
[1768919997130,1.8317545,3084.4,3082.7,0.00334021]
[1768919997330,1.6695245,3084.3,3082.7,0.00334021]
[1768919997518,0.16225,3084.0,3082.7,0.00334021]
[1768919997728,1.6695245,3084.0,3081.3,1.68725928]
[1768919997930,1.6695245,3083.4,3080.5,1.68725928]
[1768919998229,0.1623,3083.0,3080.5,1.68725928]
[1768919998732,1.8318245,3082.9,3080.5,1.69100994]
[1768919998927,0.16231,3082.7,3080.5,1.69100994]
[1768919999132,0.16232,3082.6,3080.5,1.69100994]
[1768919999430,0.16233,3082.3,3080.5,0.00375066]
[1768919999637,0.16234,3082.2,3080.5,0.00375066]
[1768920000218,1.6695245,3082.2,3080.5,0.00375066]
[1768920000422,0.00275667,3082.6,3080.5,1.69100994]
[1768920000629,0.16234,3082.2,3080.5,0.00375066]
[1768920000829,1.8318845,3081.8,3080.5,0.00375066]
[1768920001034,1.6695245,3082.3,3080.5,0.00375066]
[1768920001333,1.6695245,3081.8,3080.5,0.00375066]
[1768920001534,0.16238,3081.4,3079.1,3.59425928]
[1768920001735,0.16238,3081.4,3079.1,1.68725928]
[1768920001936,1.8319245,3081.1,3078.4,1.68725928]
[1768920002229,1.6695245,3081.0,3078.4,1.68725928]
[1768920002426,1.6695245,3080.8,3078.4,1.68725928]
[1768920002627,0.16242,3080.7,3078.4,1.69101054]
[1768920002826,0.16242,3080.6,3078.4,1.69101054]
[1768920003033,1.0550366,3082.5,3078.4,1.69101054]
[1768920003227,4.15918851,3082.4,3078.4,1.69101054]
[1768920003431,0.16241,3080.9,3078.4,0.00375126]
[1768920003735,0.16241,3080.9,3078.4,1.69101054]
[1768920004325,3.247,3081.1,3078.4,0.00375126]
[1768920004634,1.6695245,3080.3,3078.4,0.00375126]
[1768920004837,1.83588467,3080.3,3078.4,0.00375126]
[1768920005231,1.6695245,3080.1,3078.4,0.00375126]
[1768920005735,1.6695245,3079.8,3078.4,0.00375126]
[1768920006039,1.6695245,3080.2,3078.4,0.00375126]
[1768920006336,1.8319945,3079.7,3078.4,0.00375126]
[1768920006531,1.67344467,3080.3,3078.4,0.00375126]
[1768920007332,1.6695245,3080.1,3078.4,0.00375126]
[1768920007528,0.16248,3079.5,3078.4,0.00375126]
[1768920007728,1.8320045,3079.5,3077.9,0.6875213]
[1768920007935,3.248,3080.0,3077.9,0.6875213]
[1768920008228,1.6695245,3079.2,3077.9,0.6875213]
[1768920008428,1.6695245,3079.1,3076.3,1.84989928]
[1768920008632,1.6695245,3079.1,3076.3,1.68725928]
[1768920008838,0.16253,3078.6,3076.3,1.68988036]
[1768920009444,1.8320645,3078.3,3076.3,0.00262108]
[1768920009634,3.249,3078.6,3076.3,1.68988036]
[1768920010035,1.8320345,3078.9,3076.3,1.68988036]
[1768920010241,0.16253,3078.7,3076.3,1.68988036]
[1768920010432,1.8320545,3078.7,3076.3,1.68988036]
[1768920010639,0.16253,3078.7,3076.3,1.68988036]
[1768920010840,1.6695245,3079.3,3076.5,1.68725928]
[1768920011039,1.6695245,3079.3,3076.7,1.68725928]
[1768920011336,1.6695245,3079.3,3077.2,1.68725928]
[1768920011542,1.6695245,3079.3,3076.8,4.26513091]
[1768920011840,1.6695245,3079.1,3076.6,1.68725928]
[1768920012042,1.8320245,3079.1,3076.6,1.68725928]
[1768920012244,1.6695245,3079.7,3076.8,1.68725928]
[1768920012440,1.6695245,3079.7,3077.2,1.68725928]
[1768920012637,0.16246,3079.9,3077.2,1.68725928]
[1768920012838,0.16246,3079.9,3077.4,1.68725928]
[1768920013143,1.6695245,3079.5,3077.4,1.68725928]
[1768920013444,1.6695245,3079.2,3076.8,1.68725928]
[1768920013663,0.16251,3078.9,3076.8,1.68725928]
[1768920013947,1.8320345,3078.9,3076.3,0.00262108]
[1768920014145,1.8320345,3078.9,3076.3,1.85253036]
[1768920014349,0.00392017,3080.3,3076.7,1.84988928]
[1768920014350,1.6695245,3079.6,3076.7,1.84988928]
[1768920014535,0.16248,3079.5,3076.9,1.68725928]
[1768920014939,2.09275651,3079.5,3076.9,1.68725928]
[1768920015338,1.93027651,3079.5,3076.9,1.68725928]
[1768920015848,2.09277651,3079.2,3076.9,1.68725928]
[1768920016239,1.93027651,3079.9,3076.9,1.68725928]
[1768920016440,0.16247,3079.7,3076.9,1.84987928]
[1768920016647,0.16247,3079.7,3077.1,1.8718727]
[1768920017446,1.93027651,3079.9,3077.4,1.8718727]
[1768920017746,0.16636017,3080.3,3077.7,1.8718727]
[1768920017951,0.00392017,3080.3,3078.1,1.8718727]
[1768920018143,0.00392017,3080.3,3078.5,1.8718727]
[1768920018343,0.00392017,3080.3,3078.5,1.87558849]
[1768920018853,0.00392017,3080.3,3078.5,0.00371579]
[1768920019042,1.93027651,3080.2,3078.5,0.00371579]
[1768920019242,0.16245,3080.1,3078.5,0.00371579]
[1768920019752,0.00392017,3080.3,3078.5,0.00371579]
[1768920019947,2.09271651,3080.2,3078.5,0.00371579]
[1768920020146,2.09272651,3080.1,3078.5,0.00371579]
[1768920020446,1.93027651,3080.0,3078.5,0.00371579]
[1768920020844,3.25392017,3080.3,3078.5,0.00371579]
[1768920021046,0.00392017,3080.3,3078.5,0.00371579]
[1768920021551,0.16636017,3080.3,3078.5,0.00371579]
[1768920022748,1.93419668,3080.3,3078.5,0.00371579]
[1768920023057,0.16246,3079.9,3078.5,0.00371579]
[1768920023745,2.09274651,3079.8,3078.5,0.00371579]
[1768920024154,0.16247,3079.7,3078.5,0.00371579]
[1768920024839,1.93027651,3079.6,3077.2,1.8718727]
[1768920025046,0.16251,3079.0,3076.7,3.25]
[1768920025351,0.16251,3079.0,3076.7,5.1218727]
[1768920025554,0.16251,3079.0,3076.8,1.8718727]
[1768920025949,1.93027651,3079.6,3077.1,1.8718727]
[1768920026257,1.93027651,3079.6,3076.8,4.23369888]
[1768920026258,0.00392017,3080.3,3078.1,1.8718727]
[1768920026551,2.09663668,3080.3,3078.1,1.8718727]
[1768920026954,2.09271651,3080.2,3077.6,0.16258]
[1768920027153,1.93027651,3080.0,3077.6,0.16258]
[1768920027749,2.09272651,3080.0,3077.6,0.16258]
[1768920027953,3.251,3080.2,3076.8,1.87460343]
[1768920027954,1.93027651,3079.3,3076.8,1.87460343]
[1768920028251,2.09278651,3079.0,3076.8,1.87460343]
[1768920028453,2.09279651,3078.7,3076.8,0.00273073]
[1768920028658,1.08967851,3078.6,3076.8,0.00273073]
[1768920028843,1.93027651,3078.7,3076.8,0.00273073]
[1768920029047,2.09281651,3078.4,3076.8,0.00273073]
[1768920029244,0.92705943,3078.3,3076.8,0.00273073]
[1768920029450,1.93027651,3078.1,3076.8,0.00273073]
[1768920029651,0.92705943,3078.0,3076.8,0.00273073]
[1768920029846,0.00359692,3078.1,3076.8,0.00273073]
[1768920030251,0.9278502,3078.0,3076.8,0.00273073]
[1768920030457,0.00359692,3078.1,3076.8,0.00273073]
[1768920030664,0.92747551,3078.0,3076.8,0.00273073]
[1768920030848,0.00359692,3078.1,3076.8,0.00273073]
[1768920032550,0.00359692,3078.1,3076.8,1.87460343]
[1768920032749,1.93027651,3079.2,3076.8,2.03722343]
[1768920032957,0.92831501,3079.1,3076.8,2.03722343]
[1768920033155,0.92831501,3079.0,3076.8,2.03722343]
[1768920033360,1.93027651,3079.2,3077.0,1.8718727]
[1768920033760,0.00314454,3079.2,3077.2,1.8718727]
[1768920033957,0.00314454,3079.2,3077.2,2.0344727]
[1768920034158,0.00314454,3079.2,3077.4,1.8718727]
[1768920034661,2.85918508,3079.1,3076.8,5.12560343]
[1768920034854,2.09278651,3078.9,3076.8,1.87460343]
[1768920035049,2.09280651,3078.7,3076.8,0.00273073]
[1768920035252,2.09281651,3078.5,3076.8,0.00273073]
[1768920035455,1.93027651,3078.3,3076.8,0.00273073]
[1768920035656,0.92890857,3078.2,3076.8,0.00273073]
[1768920035952,1.93027651,3078.3,3076.8,0.00273073]
[1768920035953,0.92890857,3078.1,3076.8,0.00273073]
[1768920036162,1.93027651,3078.3,3076.8,0.00273073]
[1768920036351,0.16251,3078.9,3076.8,1.87460343]
[1768920036555,0.92850339,3078.8,3076.8,1.87460343]
[1768920036857,0.92850339,3078.7,3076.8,1.87460343]
[1768920037161,0.92850339,3078.6,3076.8,1.87460343]
[1768920037464,1.93342105,3079.2,3076.8,1.87460343]
[1768920037650,0.16251,3079.0,3076.8,1.87460343]
[1768920037852,0.92860846,3078.9,3076.8,1.87460343]
[1768920038062,0.92860846,3078.8,3076.8,1.87460343]
[1768920038261,2.85888497,3078.7,3076.8,0.00273073]
[1768920038461,0.92860846,3078.6,3076.8,0.00273073]
[1768920038755,0.16254,3078.4,3076.8,0.00273073]
[1768920038960,1.09114846,3078.3,3076.8,0.00273073]
[1768920039157,0.92860846,3078.2,3076.8,0.00273073]
[1768920039364,0.92860846,3078.1,3076.8,0.00273073]
[1768920039562,0.16254,3078.3,3076.8,0.00273073]
[1768920039860,1.93027651,3078.7,3076.8,0.00273073]
[1768920039861,0.9282334,3078.2,3076.8,0.00273073]
[1768920040162,2.09280651,3078.7,3076.8,0.00273073]
[1768920040358,0.92825465,3078.6,3076.8,0.00273073]
[1768920040661,2.09592105,3079.2,3076.8,1.87460343]
[1768920040859,1.93342105,3079.2,3077.2,1.8718727]
[1768920041055,0.00314454,3079.2,3077.2,2.0344727]
[1768920041255,0.00314454,3079.2,3077.4,1.8718727]
[1768920041452,0.00314454,3079.2,3077.6,1.8718727]
[1768920041656,0.00314454,3079.2,3077.3,4.30769828]
[1768920041857,0.00314454,3079.2,3077.7,1.8718727]
[1768920042156,0.16243,3080.6,3078.1,1.8718727]
[1768920042462,1.93027651,3081.3,3079.0,1.8718727]
[1768920042652,0.16236,3081.9,3079.2,1.8718727]
[1768920042653,2.09263651,3081.9,3079.2,1.8718727]
[1768920042966,2.09265651,3081.5,3079.1,4.2096561]
[1768920043266,0.92747068,3081.4,3079.1,0.00238296]
[1768920043566,2.08659866,3081.3,3079.1,0.00238296]
[1768920043956,2.08659866,3081.3,3079.1,2.08053481]
[1768920044152,0.00300768,3081.5,3079.3,2.07815185]
[1768920044363,0.00300768,3081.5,3079.5,2.24063185]
[1768920044566,0.00300768,3081.5,3079.7,2.07815185]
[1768920044762,0.00300768,3081.5,3080.1,2.07815185]
[1768920044955,0.00300768,3081.5,3079.5,3.251]
[1768920045157,0.00300768,3081.5,3079.5,9.70632161]
[1768920045367,0.00300768,3081.5,3079.5,5.39397738]
[1768920045558,0.00300768,3081.5,3079.6,2.14297738]
[1768920045760,0.00300768,3081.5,3079.7,2.14297738]
[1768920046351,0.00300768,3081.5,3079.3,3.251]
[1768920046855,0.00300768,3081.5,3079.7,2.14297738]
[1768920047455,3.00159546,3081.4,3079.1,0.00238296]
[1768920047765,1.05487977,3080.5,3079.1,0.00238296]
[1768920047968,2.08841805,3080.4,3079.1,0.00238296]
[1768920048856,2.08841805,3080.4,3077.7,2.14297738]
[1768920049054,2.08841805,3080.1,3077.7,2.14297738]
[1768920049257,2.08841805,3079.9,3077.4,3.25]
[1768920049469,2.08841805,3079.7,3077.2,4.52740388]
[1768920049653,3.25,3080.6,3077.2,4.52740388]
[1768920049654,2.08841805,3079.4,3077.2,4.52740388]
[1768920050063,2.08841805,3079.4,3077.2,4.53074147]
[1768920050271,2.25090805,3079.4,3077.2,4.53074147]
[1768920051070,2.08841805,3079.9,3077.3,2.14297738]
[1768920051364,2.08841805,3079.5,3077.2,4.53074147]
[1768920051864,2.08841805,3079.5,3077.3,2.14297738]
[1768920052164,5.33941805,3080.2,3077.3,2.14297738]
[1768920052467,2.08841805,3079.8,3077.3,2.14297738]
[1768920052972,2.08841805,3079.4,3077.2,0.00333759]
[1768920053269,0.1625,3079.2,3077.2,0.00333759]
[1768920053468,0.16511293,3079.2,3077.2,0.00333759]
[1768920053663,2.08841805,3078.8,3077.2,0.00333759]
[1768920053868,2.08841805,3078.4,3077.2,0.00333759]
[1768920054057,0.16254,3078.5,3075.6,3.251]
[1768920054058,2.08841805,3078.2,3075.6,3.251]
[1768920054258,2.08841805,3077.9,3075.5,2.14297738]
[1768920054566,2.08841805,3077.4,3074.9,2.14297738]
[1768920054761,2.25100805,3077.4,3074.9,2.14297738]
[1768920054956,1.05487977,3077.0,3074.9,2.14297738]
[1768920055263,2.08841805,3076.4,3074.9,0.0037538]
[1768920055663,0.00389059,3077.0,3074.9,0.0037538]
[1768920055968,2.09230864,3077.0,3074.9,0.0037538]
[1768920056964,2.08841805,3076.2,3074.9,0.0037538]
[1768920057164,2.08841805,3076.2,3073.8,2.14297738]
[1768920057365,1.05487977,3075.8,3073.4,3.251]
[1768920057563,3.14329782,3075.8,3073.4,3.251]
[1768920058064,3.14329782,3075.8,3073.4,3.25347371]
[1768920059368,3.14329782,3075.3,3073.4,3.25347371]
[1768920059566,3.14329782,3075.3,3073.4,0.00247371]
[1768920059871,2.08841805,3075.2,3073.4,0.00247371]
[1768920060258,2.08841805,3075.8,3073.4,2.14545109]
[1768920060461,2.08841805,3076.4,3073.7,2.14297738]
[1768920060677,2.08841805,3076.7,3074.2,2.14297738]
[1768920060969,3.25589059,3077.0,3073.8,4.29528976]
[1768920060970,2.08841805,3076.3,3073.8,4.29528976]
[1768920061272,3.25589059,3077.0,3073.6,5.39497738]
[1768920061273,2.08841805,3075.8,3073.6,3.252]
[1768920061467,2.08841805,3075.8,3073.4,0.00247371]
[1768920061765,2.08841805,3075.4,3073.4,0.00247371]
[1768920061958,1.05487977,3075.9,3073.4,2.14545109]
[1768920061959,2.08841805,3075.8,3073.4,2.14545109]
[1768920062163,2.08841805,3075.3,3073.4,0.00247371]
[1768920063464,1.05487977,3075.9,3073.4,0.00247371]
[1768920063465,1.05487977,3074.9,3073.4,0.00247371]
[1768920063672,2.08841805,3075.1,3073.4,0.00247371]
[1768920064267,2.08841805,3074.8,3073.4,0.00247371]
[1768920064567,2.08841805,3074.8,3071.4,14.85487977]
[1768920064568,2.08841805,3073.8,3071.4,2.14297738]
[1768920065169,1.05487977,3073.4,3071.4,2.14297738]
[1768920065363,3.14329782,3073.4,3070.8,4.5971023]
[1768920065563,2.08841805,3072.8,3070.8,0.00405233]
[1768920065968,1.05487977,3072.4,3070.8,0.00405233]
[1768920066166,2.08841805,3072.8,3070.8,0.00405233]
[1768920066671,1.05487977,3072.9,3070.8,0.00405233]
[1768920066868,3.14570717,3073.4,3070.8,2.14702971]
[1768920067073,2.0908274,3073.4,3070.8,2.14702971]
[1768920067274,2.0908274,3073.4,3071.0,2.14297738]
[1768920067574,3.14329782,3073.2,3071.0,2.14297738]
[1768920067869,0.00240935,3073.4,3071.0,2.14297738]
[1768920068075,0.00240935,3073.4,3070.8,3.25805233]
[1768920068076,2.08841805,3073.1,3070.8,0.00405233]
[1768920068570,2.08841805,3072.1,3070.8,0.00405233]
[1768920068974,3.14329782,3072.7,3070.8,0.00405233]
[1768920069371,2.08841805,3072.6,3070.8,0.00405233]
[1768920069771,2.08841805,3073.2,3070.8,2.14702971]
[1768920069974,2.08841805,3073.1,3070.8,2.14702971]
[1768920070273,2.08841805,3073.1,3070.8,0.00405233]
[1768920070480,2.25123805,3073.1,3070.8,0.00405233]
[1768920071177,2.25123805,3073.1,3070.8,2.14702971]
[1768920072175,2.25123805,3073.1,3070.8,0.00405233]
[1768920072378,1.05487977,3071.7,3070.8,0.00405233]
[1768920072577,1.05487977,3072.2,3070.8,0.00405233]
[1768920073382,2.08841805,3071.6,3070.2,1.48e-06]
[1768920073582,1.05487977,3071.3,3070.2,1.48e-06]
[1768920073785,2.08841805,3072.2,3070.2,1.48e-06]
[1768920074089,2.08841805,3071.8,3070.2,1.48e-06]
[1768920074288,2.08841805,3071.8,3070.2,0.00270071]
[1768920074487,3.14329782,3071.4,3070.2,0.00270071]
[1768920074679,1.05487977,3070.9,3069.0,2.14297738]
[1768920075787,1.05874411,3070.9,3069.0,2.1466734]
[1768920075989,3.23010478,3070.9,3069.0,0.00369602]
[1768920076585,2.17136067,3070.8,3069.0,0.00369602]
[1768920077582,1.05487977,3070.4,3069.0,0.00369602]
[1768920077783,3.22624044,3070.4,3069.0,0.00369602]
[1768920077973,3.22624044,3070.4,3067.8,2.40609356]
[1768920077974,2.17136067,3069.8,3067.2,0.16313]
[1768920078178,1.05487977,3068.9,3066.4,2.24299356]
[1768920078377,0.16303,3069.2,3066.6,2.40615356]
[1768920078584,2.33435067,3070.0,3067.4,2.24299356]
[1768920078785,0.00386434,3070.9,3067.4,2.24299356]
[1768920078786,2.17136067,3069.8,3067.4,2.24299356]
[1768920078985,1.21786977,3069.9,3067.4,2.24566859]
[1768920078986,2.33436067,3069.7,3067.4,2.24566859]
[1768920079181,2.17136067,3069.3,3067.4,0.00267503]
[1768920079484,2.17136067,3068.5,3066.6,3.258]
[1768920079887,2.17136067,3069.2,3066.7,2.24299356]
[1768920080287,2.17136067,3068.6,3066.1,2.24299356]
[1768920080489,2.17435879,3068.6,3066.1,2.24542497]
[1768920080788,0.16307,3068.4,3066.1,2.24542497]
[1768920080987,0.00299812,3068.6,3066.2,4.16868815]
[1768920081288,0.00299812,3068.6,3066.5,2.40616356]
[1768920081488,0.00299812,3068.6,3066.9,2.40614356]
[1768920082487,0.00299812,3068.6,3067.3,2.40612356]
[1768920082988,3.259,3070.4,3067.3,2.40612356]
[1768920082989,0.16296,3070.4,3067.8,2.24299356]
[1768920083180,0.16296,3070.4,3068.0,2.24299356]
[1768920083379,3.22624044,3069.6,3067.1,0.16313]
[1768920083585,0.16303,3069.2,3066.9,5.50199356]
[1768920083786,0.16305,3068.7,3066.9,2.24299356]
[1768920083987,2.17136067,3069.0,3066.4,3.259]
[1768920084488,0.16304,3068.9,3066.5,2.24299356]
[1768920084886,2.17136067,3069.0,3066.5,2.24299356]
[1768920085076,0.00281394,3069.2,3066.9,0.16315]
[1768920085280,0.00281394,3069.2,3067.0,2.24299356]
[1768920085681,0.00281394,3069.2,3067.2,0.16313]
[1768920085893,0.00281394,3069.2,3067.2,2.40612356]
[1768920086381,1.05487977,3069.1,3066.5,2.40616356]
[1768920086585,2.17136067,3069.0,3066.8,3.26]
[1768920086790,2.17136067,3069.0,3066.5,2.24299356]
[1768920086791,1.05487977,3068.6,3066.5,2.24299356]
[1768920087091,3.22624044,3068.6,3066.5,2.24299356]
[1768920087482,0.00281394,3069.2,3066.6,4.26401236]
[1768920087683,0.00281394,3069.2,3066.7,2.24299356]
[1768920087882,0.00281394,3069.2,3066.9,0.16315]
[1768920088080,0.00281394,3069.2,3066.7,2.24299356]
[1768920088284,0.00281394,3069.2,3067.0,6.38327977]
[1768920088480,0.00281394,3069.2,3067.5,2.40610356]
[1768920088788,2.17136067,3068.3,3066.6,4.14028621]
[1768920089090,2.17136067,3068.3,3066.2,0.16318]
[1768920089594,2.33446067,3067.8,3065.5,0.16322]
[1768920089789,0.16307,3068.4,3065.7,2.24299356]
[1768920090291,0.16307,3068.4,3066.1,2.24542497]
[1768920090482,2.17136067,3068.5,3066.4,0.16317]
[1768920090882,2.17417461,3069.2,3066.4,2.24299356]
[1768920091095,2.33720461,3069.2,3066.8,0.16315]
[1768920091288,2.33720461,3069.2,3066.9,3.261]
[1768920091697,0.00281394,3069.2,3067.3,0.16312]
[1768920091990,0.00281394,3069.2,3067.3,5.66711356]
[1768920092189,0.00281394,3069.2,3067.3,2.40611356]
[1768920092392,0.16303,3069.1,3066.6,4.31915356]
[1768920092598,0.16306,3068.5,3065.9,2.40619356]
[1768920092790,0.16307,3068.4,3066.4,3.261]
[1768920093297,2.17136067,3068.4,3066.0,0.1632]
[1768920093501,2.17136067,3068.4,3066.0,3.4242]
[1768920093796,0.16308,3068.2,3066.1,0.16562141]
[1768920094397,0.00281394,3069.2,3066.9,0.16315]
[1768920094398,2.17136067,3069.0,3066.9,0.16315]
[1768920094595,2.17136067,3069.0,3067.0,0.16314]
[1768920094897,0.00281394,3069.2,3067.1,0.16314]